[Event "8th Palmanova Open 2019"]
[Site "Palmanova"]
[Date "2019.12.07"]
[Round "3.9"]
[White "Laco, Giuseppe"]
[Black "Bozza, Gabriele"]
[Result "1/2-1/2"]
[ECO "B20"]
[WhiteElo "1972"]
[BlackElo "1948"]
[Annotator "NA"]
[PlyCount "146"]
[EventDate "2019.12.06"]
[EventType "swiss"]
[EventCountry "ITA"]
[SourceTitle "playchess.com"]
[Source "ChessBase"]
[SourceQuality "1"]
[TimeControl "5400+30"]

1. c4 {[%emt 0:00:00]} e6 {[%emt 0:00:00]} 2. e4 {[%emt 0:00:24]} c5 {[%emt 0:00:14]} 3. Nc3 {[%emt 0:00:17]} Nc6 {[%emt 0:00:12]} 4. f4 {[%emt 0:00:34]} d6 {[%emt 0:01:08]} 5. Nf3 {[%emt 0:00:15]} g6 {[%emt 0:04:11]} 6. d3 {[%emt 0:01:55]} Bg7 {[%emt 0:00:17]} 7. Be3 {[%emt 0:00:27]} Nge7 {[%emt 0:00:48]} 8. Qd2 {[%emt 0:02:57]} O-O {[%emt 0:00:58]} 9. g4 {[%emt 0:03:14]} f5 {[%emt 0:01:22]} 10. exf5 {[%emt 0:01:03]} exf5 {[%emt 0:00:30]} 11. g5 {[%emt 0:00:13]} Nd4 {[%emt 0:04:25]} 12. Bg2 {[%emt 0:01:09]} Be6 {[%emt 0:02:33]} 13. Bxd4 {[%emt 0:04:59]} cxd4 {[%emt 0:00:42]} 14. Ne2 {[%emt 0:00:16]} Qb6 {[%emt 0:05:22]} 15. Rb1 {[%emt 0:05:40]} d5 {[%emt 0:04:14]} 16. Rc1 {[%emt 0:03:53]} dxc4 {[%emt 0:01:57]} 17. dxc4 {[%emt 0:00:03]} Rad8 {[%emt 0:03:41]} 18. b3 {[%emt 0:02:58]} a5 {[%emt 0:01:57]} 19. Qd3 {[%emt 0:04:29]} Qc5 {[%emt 0:02:39]} 20. O-O {[%emt 0:02:34]} Nc6 {[%emt 0:00:14]} 21. Kh1 {[%emt 0:00:12]} Rfe8 {[%emt 0:00:17]} 22. Rce1 {[%emt 0:03:43]} Nb4 {[%emt 0:11:20]} 23. Qd2 {[%emt 0:00:58]} b5 {[%emt 0:03:51]} 24. a3 {[%emt 0:03:07]} Nc6 {[%emt 0:00:12]} 25. cxb5 {[%emt 0:01:05]} Qxb5 {[%emt 0:00:16]} 26. Rb1 {[%emt 0:01:23]} Bd5 {[%emt 0:03:49]} 27. Ng3 {[%emt 0:09:10]} Re3 {[%emt 0:04:46]} 28. a4 {[%emt 0:05:48]} Qb6 {[%emt 0:05:22]} 29. Ne1 {[%emt 0:02:47]} Bxg2+ {[%emt 0:00:49]} 30. Qxg2 {[%emt 0:00:18]} Nb4 {[%emt 0:02:37]} 31. Nf3 {[%emt 0:04:01]} Nd5 {[%emt 0:04:01]} 32. Nd2 {[%emt 0:00:21]} Qb4 {[%emt 0:01:41]} 33. Rf2 {[%emt 0:01:25]} d3 {[%emt 0:04:05]} 34. Nc4 {[%emt 0:02:21]} Re1+ {[%emt 0:01:52]} 35. Rxe1 {[%emt 0:03:29]} Qxe1+ {[%emt 0:00:06]} 36. Nf1 {[%emt 0:00:57]} Bc3 {[%emt 0:02:37]} 37. Qf3 {[%emt 0:00:58]} Qe4 {[%emt 0:03:24]} 38. Nfd2 {[%emt 0:01:50]} Bxd2 {[%emt 0:02:51]} 39. Nxd2 {[%emt 0:00:37]} Qe1+ {[%emt 0:00:10]} 40. Kg2 {[%emt 0:02:34]} Ne3+ {[%emt 0:06:17]} 41. Kh3 {[%emt 0:00:31]} Ng4 {[%emt 0:00:30]} 42. Rg2 {[%emt 0:00:46]} Qe3 {[%emt 0:00:52]} 43. Qxe3 {[%emt 0:04:37]} Nxe3 {[%emt 0:00:05]} 44. Rg3 {[%emt 0:00:16]} Nd5 {[%emt 0:01:10]} 45. Rf3 {[%emt 0:00:16]} Nb4 {[%emt 0:01:27]} 46. Re3 {[%emt 0:01:00]} Rd4 {[%emt 0:02:47]} 47. Kg3 {[%emt 0:00:24]} Kf7 {[%emt 0:00:39]} 48. Rf3 {[%emt 0:02:19]} Nd5 {[%emt 0:00:31]} 49. Rf1 {[%emt 0:01:05]} Nc3 {[%emt 0:01:03]} 50. Kf3 {[%emt 0:01:16]} Nd5 {[%emt 0:01:52]} 51. Kg3 {[%emt 0:00:34]} Re4 {[%emt 0:00:30]} 52. Rf3 {[%emt 0:03:18]} Rd4 {[%emt 0:00:34]} 53. h4 {[%emt 0:01:09]} Nc3 {[%emt 0:00:16]} 54. Kf2 {[%emt 0:00:30]} Ne4+ {[%emt 0:00:27]} 55. Ke3 {[%emt 0:00:17]} Rd5 {[%emt 0:02:24]} 56. Rh3 {[%emt 0:15:18]} Nc3 {[%emt 0:05:06]} 57. h5 {[%emt 0:00:00]} Kg7 {[%emt 0:00:00]} 58. hxg6 {[%emt 0:00:00]} hxg6 {[%emt 0:00:00]} 59. Rh1 {[%emt 0:00:00]} Rd8 {[%emt 0:00:00]} 60. Rc1 {[%emt 0:00:00]} Nd5+ {[%emt 0:00:00]} 61. Kf3 {[%emt 0:00:00]} Re8 {[%emt 0:00:59]} 62. Nf1 {[%emt 0:00:00]} Re4 {[%emt 0:00:20]} 63. Rc4 {[%emt 0:00:00]} Rxc4 {[%emt 0:00:21]} 64. bxc4 {[%emt 0:00:00]} Nb6 {[%emt 0:00:01]} 65. c5 {[%emt 0:00:00]} Nxa4 {[%emt 0:00:06]} 66. c6 {[%emt 0:00:00]} Kf7 {[%emt 0:00:21]} 67. Nd2 {[%emt 0:00:00]} Nb6 {[%emt 0:00:23]} 68. Nc4 {[%emt 0:00:00]} Nd5 {[%emt 0:00:11]} 69. Nxa5 {[%emt 0:00:00]} Ke7 {[%emt 0:01:03]} 70. Nc4 {[%emt 0:00:00]} Kd8 {[%emt 0:00:17]} 71. Ne5 {[%emt 0:00:00]} d2 {[%emt 0:00:16]} 72. Ke2 {[%emt 0:00:00]} Nxf4+ {[%emt 0:00:10]} 73. Kxd2 {[%emt 0:00:00]} Ne6 {[%emt 0:00:20]} 1/2-1/2

[Event "8th Palmanova Open 2019"]
[Site "Palmanova"]
[Date "2019.12.07"]
[Round "3.10"]
[White "Gregoric, Andraz"]
[Black "Herega, Nejc"]
[Result "1-0"]
[ECO "B73"]
[WhiteElo "2036"]
[BlackElo "2009"]
[Annotator "NA"]
[PlyCount "75"]
[EventDate "2019.12.06"]
[EventType "swiss"]
[EventCountry "ITA"]
[SourceTitle "playchess.com"]
[Source "ChessBase"]
[SourceQuality "1"]
[TimeControl "5400+30"]

1. e4 {[%emt 0:00:00]} c5 {[%emt 0:00:00]} 2. Nf3 {[%emt 0:00:00]} g6 {[%emt 0:00:00]} 3. d4 {[%emt 0:00:07]} cxd4 {[%emt 0:00:00]} 4. Nxd4 {[%emt 0:00:08]} Bg7 {[%emt 0:00:00]} 5. Nc3 {[%emt 0:00:49]} Nc6 {[%emt 0:00:10]} 6. Be3 {[%emt 0:00:07]} Nf6 {[%emt 0:00:34]} 7. Be2 {[%emt 0:00:09]} O-O {[%emt 0:00:28]} 8. O-O {[%emt 0:01:20]} d6 {[%emt 0:04:13]} 9. h3 {[%emt 0:04:41]} Bd7 {[%emt 0:03:08]} 10. Nb3 {[%emt 0:01:57]} Rc8 {[%emt 0:04:15]} 11. f4 {[%emt 0:00:42]} a6 {[%emt 0:03:57]} 12. Bf3 {[%emt 0:02:52]} b5 {[%emt 0:02:43]} 13. Qd2 {[%emt 0:05:36]} Qc7 {[%emt 0:06:17]} 14. Rf2 {[%emt 0:03:54]} Rfd8 {[%emt 0:08:27]} 15. Nd5 {[%emt 0:15:22]} Qb8 {[%emt 0:04:20]} 16. Rd1 {[%emt 0:14:51]} Be8 {[%emt 0:07:58]} 17. Nd4 {[%emt 0:02:18]} Qb7 {[%emt 0:06:50]} 18. c3 {[%emt 0:05:36]} e6 {[%emt 0:03:25]} 19. Nxf6+ {[%emt 0:00:26]} Bxf6 {[%emt 0:00:14]} 20. f5 {[%emt 0:03:04]} Nxd4 {[%emt 0:05:32]} 21. cxd4 {[%emt 0:01:46]} Qe7 {[%emt 0:02:31]} 22. fxe6 {[%emt 0:01:25]} fxe6 {[%emt 0:01:22]} 23. Bg4 {[%emt 0:02:51]} Bd7 {[%emt 0:02:58]} 24. Rdf1 {[%emt 0:00:40]} Rf8 {[%emt 0:03:09]} 25. Bh6 {[%emt 0:01:30]} Bg7 {[%emt 0:01:40]} 26. Bg5 {[%emt 0:00:13]} Rxf2 {[%emt 0:00:19]} 27. Rxf2 {[%emt 0:00:18]} Qe8 {[%emt 0:00:29]} 28. Bf6 {[%emt 0:04:29]} Bxf6 {[%emt 0:03:05]} 29. Rxf6 {[%emt 0:00:17]} Qe7 {[%emt 0:00:22]} 30. Qg5 {[%emt 0:02:43]} Re8 {[%emt 0:05:51]} 31. e5 {[%emt 0:01:46]} Kg7 {[%emt 0:02:42]} 32. h4 {[%emt 0:03:47]} dxe5 {[%emt 0:03:32]} 33. dxe5 {[%emt 0:00:09]} Qc5+ {[%emt 0:01:11]} 34. Kh2 {[%emt 0:00:15]} Qc2 {[%emt 0:00:12]} 35. Qf4 {[%emt 0:00:40]} Bc6 {[%emt 0:04:16]} 36. Rf7+ {[%emt 0:02:01]} Kg8 {[%emt 0:00:05]} 37. Bh3 {[%emt 0:00:07]} Qe4 {[%emt 0:03:29]} 38. Qf6 {[%emt 0:00:38]} 1-0

[Event "8th Palmanova Open 2019"]
[Site "Palmanova"]
[Date "2019.12.08"]
[Round "4.1"]
[White "Margl, Roland"]
[Black "Zamengo, Fulvio"]
[Result "1/2-1/2"]
[ECO "D20"]
[WhiteElo "2249"]
[BlackElo "2357"]
[Annotator "NA"]
[PlyCount "154"]
[EventDate "2019.12.06"]
[EventType "swiss"]
[EventCountry "ITA"]
[SourceTitle "playchess.com"]
[Source "ChessBase"]
[SourceQuality "1"]
[TimeControl "5400+30"]

1. d4 {[%emt 0:00:00]} e6 {[%emt 0:08:08]} 2. e4 {[%emt 0:03:03]} d5 {[%emt 0:00:17]} 3. exd5 {[%emt 0:00:07]} exd5 {[%emt 0:00:12]} 4. Nf3 {[%emt 0:00:11]} Bd6 {[%emt 0:03:45]} 5. c4 {[%emt 0:02:51]} dxc4 $14 {[%emt 0:03:13]} 6. Bxc4 {[%emt 0:00:05]} Nf6 {[%emt 0:00:06]} 7. O-O {[%emt 0:00:48]} O-O {[%emt 0:00:06]} 8. Bg5 {[%emt 0:06:25]} Nc6 {[%emt 0:23:51]} 9. Nc3 {[%emt 0:03:14]} h6 {[%emt 0:00:20]} 10. Bh4 {[%emt 0:01:18]} Bg4 {[%emt 0:00:08]} 11. d5 {[%emt 0:10:36]} Ne5 {[%emt 0:20:46]} 12. Be2 {[%emt 0:00:21]} Ng6 {[%emt 0:00:19]} 13. Bg3 {[%emt 0:04:59]} Bxg3 {[%emt 0:01:17]} 14. hxg3 {[%emt 0:00:34]} Re8 {[%emt 0:02:39]} 15. Re1 {[%emt 0:02:20]} a6 {[%emt 0:00:22]} 16. Qb3 {[%emt 0:10:00]} Qd6 {[%emt 0:00:38]} 17. Qxb7 {[%emt 0:12:07]} Reb8 {[%emt 0:05:26]} 18. Qc6 {[%emt 0:00:30]} Qxc6 {[%emt 0:00:10]} 19. dxc6 {[%emt 0:00:04]} Rxb2 {[%emt 0:00:22]} 20. Rab1 {[%emt 0:00:44]} Rc2 {[%emt 0:00:48]} 21. Rec1 {[%emt 0:00:15]} Rxc1+ {[%emt 0:00:08]} 22. Rxc1 {[%emt 0:00:04]} Ne7 {[%emt 0:01:33]} 23. Rb1 {[%emt 0:07:58]} Nxc6 {[%emt 0:08:47]} 24. Rb7 {[%emt 0:00:17]} Ne8 {[%emt 0:00:08]} 25. Nd5 {[%emt 0:07:43]} Bc8 {[%emt 0:00:15]} 26. Rb2 {[%emt 0:02:30]} Be6 {[%emt 0:00:06]} 27. Nf4 {[%emt 0:00:18]} Bd7 {[%emt 0:00:05]} 28. a3 {[%emt 0:06:38]} Rb8 {[%emt 0:02:44]} 29. Rc2 {[%emt 0:02:48]} Rb1+ {[%emt 0:00:07]} 30. Bf1 {[%emt 0:01:43]} Nf6 {[%emt 0:00:10]} 31. Nd2 {[%emt 0:00:30]} Rd1 {[%emt 0:01:59]} 32. f3 {[%emt 0:01:14]} g5 {[%emt 0:03:56]} 33. Ne2 {[%emt 0:00:36]} Nd5 {[%emt 0:00:17]} 34. Kf2 {[%emt 0:01:15]} Ne5 {[%emt 0:00:07]} 35. Nd4 {[%emt 0:02:10]} Ba4 {[%emt 0:06:14]} 36. Rb2 {[%emt 0:00:49]} c5 {[%emt 0:02:20]} 37. N4b3 {[%emt 0:02:22]} Bxb3 {[%emt 0:02:09]} 38. Nxb3 {[%emt 0:00:19]} c4 {[%emt 0:00:32]} 39. Rd2 {[%emt 0:02:01]} Rxd2+ {[%emt 0:01:20]} 40. Nxd2 {[%emt 0:00:05]} Nb6 {[%emt 0:04:10]} 41. Ke3 {[%emt 0:00:12]} c3 {[%emt 0:00:00]} 42. Nb3 {[%emt 0:00:07]} Nec4+ {[%emt 0:00:00]} 43. Kd4 {[%emt 0:00:15]} Nxa3 {[%emt 0:00:53]} 44. Bxa6 {[%emt 0:08:05]} Na4 {[%emt 0:00:14]} 45. Bc8 {[%emt 0:00:54]} c2 {[%emt 0:00:50]} 46. Bd7 {[%emt 0:00:41]} Nb6 {[%emt 0:00:01]} 47. Bc6 {[%emt 0:00:22]} Nbc4 {[%emt 0:00:33]} 48. Nc1 {[%emt 0:00:49]} Kg7 {[%emt 0:00:17]} 49. Bd5 {[%emt 0:00:36]} Nd6 {[%emt 0:00:24]} 50. g4 {[%emt 0:00:14]} Kf6 {[%emt 0:00:09]} 51. Bb3 {[%emt 0:00:29]} Nab5+ {[%emt 0:00:27]} 52. Kd3 {[%emt 0:00:37]} Ke5 {[%emt 0:00:01]} 53. Bxc2 {[%emt 0:00:17]} Nd4 {[%emt 0:00:15]} 54. Bd1 {[%emt 0:00:30]} Ne6 {[%emt 0:00:30]} 55. Ke3 {[%emt 0:00:46]} Nf4 {[%emt 0:00:07]} 56. g3 {[%emt 0:00:16]} Nd5+ {[%emt 0:00:08]} 57. Kd3 {[%emt 0:00:43]} Nb4+ {[%emt 0:00:11]} 58. Ke3 {[%emt 0:00:13]} Nc4+ {[%emt 0:00:05]} 59. Kf2 {[%emt 0:00:11]} Kd4 {[%emt 0:00:05]} 60. Bb3 {[%emt 0:00:27]} Ne5 {[%emt 0:00:38]} 61. Ke2 {[%emt 0:01:20]} f6 {[%emt 0:00:06]} 62. Be6 {[%emt 0:00:18]} Ned3 {[%emt 0:00:15]} 63. Nxd3 {[%emt 0:00:28]} Nxd3 {[%emt 0:00:01]} 64. Bc8 {[%emt 0:00:13]} Nc1+ {[%emt 0:00:32]} 65. Kd2 {[%emt 0:00:11]} Nb3+ {[%emt 0:00:05]} 66. Ke2 {[%emt 0:00:04]} Nc5 {[%emt 0:01:09]} 67. Bf5 {[%emt 0:00:06]} Nb7 {[%emt 0:00:19]} 68. Bc8 {[%emt 0:00:09]} Nd6 {[%emt 0:00:05]} 69. Bd7 {[%emt 0:00:04]} Nc4 {[%emt 0:02:31]} 70. Bf5 {[%emt 0:00:25]} Ke5 {[%emt 0:02:07]} 71. Bd3 {[%emt 0:00:24]} Nb6 {[%emt 0:00:07]} 72. Bh7 {[%emt 0:00:28]} Nc4 {[%emt 0:00:36]} 73. Bd3 {[%emt 0:00:07]} Nd6 {[%emt 0:01:00]} 74. Ke3 {[%emt 0:00:10]} Kd5 {[%emt 0:00:29]} 75. Bh7 {[%emt 0:00:37]} Nc4+ {[%emt 0:00:07]} 76. Kd3 {[%emt 0:00:11]} Nb2+ {[%emt 0:00:06]} 77. Kc2 {[%emt 0:00:24]} Na4 {[%emt 0:01:03]} 1/2-1/2

[Event "8th Palmanova Open 2019"]
[Site "Palmanova"]
[Date "2019.12.08"]
[Round "4.2"]
[White "Lekic, Dusan"]
[Black "Kobal, Sasa"]
[Result "1-0"]
[ECO "B06"]
[WhiteElo "2347"]
[BlackElo "2100"]
[Annotator "NA"]
[PlyCount "131"]
[EventDate "2019.12.06"]
[EventType "swiss"]
[EventCountry "ITA"]
[SourceTitle "playchess.com"]
[Source "ChessBase"]
[SourceQuality "1"]
[TimeControl "5400+30"]

1. d4 {[%emt 0:02:58]} d6 {[%emt 0:00:34]} 2. Nf3 {[%emt 0:00:36]} g6 {[%emt 0:00:19]} 3. e4 {[%emt 0:00:27]} Bg7 {[%emt 0:00:09]} 4. Bc4 {[%emt 0:00:53]} Nf6 {[%emt 0:04:54]} 5. Qe2 {[%emt 0:00:14]} c6 {[%emt 0:05:31]} 6. Bb3 {[%emt 0:00:37]} O-O {[%emt 0:00:48]} 7. O-O {[%emt 0:02:31]} d5 {[%emt 0:06:03]} 8. e5 $14 {[%emt 0:02:55]} Ne4 {[%emt 0:03:28]} 9. Ne1 {[%emt 0:04:11]} h6 {[%emt 0:01:40]} 10. Nd3 {[%emt 0:06:16]} Na6 {[%emt 0:02:47]} 11. c3 {[%emt 0:01:37]} c5 {[%emt 0:02:10]} 12. Nf4 {[%emt 0:03:36]} cxd4 {[%emt 0:11:11]} 13. cxd4 {[%emt 0:02:22]} e6 {[%emt 0:03:08]} 14. Be3 {[%emt 0:03:18]} Bd7 {[%emt 0:02:26]} 15. f3 {[%emt 0:01:23]} Ng5 {[%emt 0:03:26]} 16. Nc3 {[%emt 0:00:32]} Nc7 {[%emt 0:04:09]} 17. Bc2 {[%emt 0:02:04]} Rc8 {[%emt 0:02:48]} 18. h4 {[%emt 0:02:52]} Nh7 {[%emt 0:01:31]} 19. h5 {[%emt 0:00:34]} g5 {[%emt 0:04:21]} 20. Qd3 {[%emt 0:01:34]} f5 {[%emt 0:00:07]} 21. exf6 {[%emt 0:00:25]} Nxf6 {[%emt 0:00:08]} 22. Ng6 {[%emt 0:00:07]} Rf7 {[%emt 0:04:07]} 23. Ne5 {[%emt 0:01:16]} Re7 {[%emt 0:00:13]} 24. g4 {[%emt 0:00:57]} Bb5 {[%emt 0:09:27]} 25. Nxb5 {[%emt 0:08:00]} Nxb5 {[%emt 0:00:05]} 26. Rac1 {[%emt 0:03:36]} Nd6 {[%emt 0:00:25]} 27. Bf2 {[%emt 0:03:06]} Rec7 {[%emt 0:02:58]} 28. Bg3 {[%emt 0:03:25]} a6 {[%emt 0:09:10]} 29. Rf2 {[%emt 0:01:15]} Qe8 {[%emt 0:05:06]} 30. Ng6 {[%emt 0:02:30]} Rc6 {[%emt 0:01:35]} 31. Re1 {[%emt 0:01:40]} Nc4 {[%emt 0:01:22]} 32. Bb1 {[%emt 0:00:56]} Rb6 {[%emt 0:00:30]} 33. Ree2 {[%emt 0:01:52]} Qd7 {[%emt 0:06:29]} 34. Kg2 {[%emt 0:01:05]} Bf8 {[%emt 0:00:34]} 35. Ne5 {[%emt 0:02:33]} Qg7 {[%emt 0:00:20]} 36. Qd1 {[%emt 0:04:14]} Bd6 {[%emt 0:00:50]} 37. b3 {[%emt 0:00:30]} Na3 {[%emt 0:00:47]} 38. Bg6 {[%emt 0:00:20]} Bxe5 {[%emt 0:00:15]} 39. Rxe5 {[%emt 0:01:08]} Nb5 {[%emt 0:00:41]} 40. a4 {[%emt 0:02:54]} Nc3 {[%emt 0:00:41]} 41. Qd3 {[%emt 0:00:15]} Rbc6 {[%emt 0:01:32]} 42. Rc2 {[%emt 0:01:26]} b5 {[%emt 0:00:11]} 43. axb5 {[%emt 0:01:24]} Nxb5 {[%emt 0:01:11]} 44. Rce2 {[%emt 0:03:18]} Qd7 {[%emt 0:00:39]} 45. Qd2 {[%emt 0:01:59]} Nc3 {[%emt 0:00:32]} 46. Re1 {[%emt 0:00:19]} Nb5 {[%emt 0:00:09]} 47. Bf2 {[%emt 0:00:49]} Rb8 {[%emt 0:01:07]} 48. Bb1 {[%emt 0:01:04]} Nc3 {[%emt 0:00:24]} 49. Bc2 {[%emt 0:00:08]} a5 {[%emt 0:00:43]} 50. Qd3 {[%emt 0:00:16]} a4 {[%emt 0:00:26]} 51. bxa4 {[%emt 0:00:40]} Qf7 {[%emt 0:00:26]} 52. a5 {[%emt 0:01:17]} Nd7 {[%emt 0:00:23]} 53. R5e3 {[%emt 0:01:20]} Rbc8 {[%emt 0:00:21]} 54. Qd2 {[%emt 0:01:36]} Qf4 {[%emt 0:01:07]} 55. Qd3 {[%emt 0:02:43]} Ne4 {[%emt 0:00:26]} 56. Rxe4 {[%emt 0:01:14]} dxe4 {[%emt 0:00:21]} 57. Rxe4 {[%emt 0:00:09]} Qf6 {[%emt 0:00:35]} 58. Bb3 {[%emt 0:00:30]} Nf8 {[%emt 0:00:29]} 59. d5 {[%emt 0:01:32]} Rc3 {[%emt 0:00:20]} 60. Qd1 {[%emt 0:00:13]} Rc1 {[%emt 0:00:45]} 61. Qe2 {[%emt 0:00:15]} e5 {[%emt 0:00:31]} 62. d6+ {[%emt 0:01:03]} Kh8 {[%emt 0:00:19]} 63. Rxe5 {[%emt 0:00:11]} Qxd6 {[%emt 0:00:11]} 64. Rd5 {[%emt 0:00:36]} Qf4 {[%emt 0:01:02]} 65. Bd4+ {[%emt 0:00:15]} Kh7 {[%emt 0:00:35]} 66. Qe7+ {[%emt 0:00:16]} 1-0

[Event "8th Palmanova Open 2019"]
[Site "Palmanova"]
[Date "2019.12.08"]
[Round "4.3"]
[White "Savanovic, Aleksandar"]
[Black "Lumachi, Gabriele"]
[Result "1/2-1/2"]
[ECO "C67"]
[WhiteElo "2420"]
[BlackElo "2241"]
[Annotator "NA"]
[PlyCount "89"]
[EventDate "2019.12.06"]
[EventType "swiss"]
[EventCountry "ITA"]
[SourceTitle "playchess.com"]
[Source "ChessBase"]
[SourceQuality "1"]
[TimeControl "5400+30"]

1. e4 {[%emt 0:02:41]} e5 {[%emt 0:00:00]} 2. Nf3 {[%emt 0:00:15]} Nc6 {[%emt 0:00:00]} 3. Bb5 {[%emt 0:00:05]} Nf6 {[%emt 0:00:00]} 4. O-O {[%emt 0:00:05]} Nxe4 {[%emt 0:00:00]} 5. d4 {[%emt 0:00:07]} Nd6 {[%emt 0:00:15]} 6. Bxc6 {[%emt 0:00:09]} dxc6 {[%emt 0:00:10]} 7. dxe5 {[%emt 0:00:05]} Nf5 {[%emt 0:00:08]} 8. Qxd8+ {[%emt 0:00:06]} Kxd8 {[%emt 0:00:06]} 9. Nc3 {[%emt 0:00:04]} Bd7 {[%emt 0:04:09]} 10. h3 $11 {[%emt 0:14:29]} Ne7 {[%emt 0:13:40]} 11. Ng5 {[%emt 0:10:03]} Ke8 {[%emt 0:03:03]} 12. Re1 {[%emt 0:02:44]} h6 {[%emt 0:13:03]} 13. e6 {[%emt 0:00:24]} fxe6 {[%emt 0:03:03]} 14. Nxe6 {[%emt 0:00:08]} Bxe6 {[%emt 0:00:23]} 15. Rxe6 {[%emt 0:00:05]} Kf7 {[%emt 0:05:17]} 16. Re2 {[%emt 0:03:46]} Nf5 {[%emt 0:06:54]} 17. Ne4 {[%emt 0:09:17]} Re8 {[%emt 0:14:28]} 18. c3 {[%emt 0:00:25]} Nd6 {[%emt 0:02:55]} 19. Ng3 {[%emt 0:01:24]} Rxe2 {[%emt 0:00:35]} 20. Nxe2 {[%emt 0:00:09]} Be7 {[%emt 0:04:07]} 21. Bf4 {[%emt 0:01:38]} Bf6 {[%emt 0:01:38]} 22. Rd1 {[%emt 0:00:38]} Re8 {[%emt 0:00:58]} 23. Kf1 {[%emt 0:00:42]} Be5 {[%emt 0:02:45]} 24. Bxe5 {[%emt 0:09:06]} Rxe5 {[%emt 0:00:08]} 25. Rd2 {[%emt 0:43:55]} a5 {[%emt 0:05:54]} 26. g4 {[%emt 0:00:00]} a4 {[%emt 0:01:14]} 27. b3 {[%emt 0:00:00]} axb3 {[%emt 0:01:58]} 28. axb3 {[%emt 0:00:00]} Ra5 {[%emt 0:04:48]} 29. f3 {[%emt 0:00:00]} c5 {[%emt 0:00:36]} 30. Kf2 {[%emt 0:00:00]} Ra3 {[%emt 0:00:50]} 31. Rb2 {[%emt 0:00:00]} Ra1 {[%emt 0:01:14]} 32. h4 {[%emt 0:00:00]} h5 {[%emt 0:02:52]} 33. c4 {[%emt 0:00:00]} hxg4 {[%emt 0:03:05]} 34. fxg4 {[%emt 0:00:00]} c6 {[%emt 0:00:15]} 35. Ng3 {[%emt 0:00:00]} b5 {[%emt 0:00:43]} 36. Rd2 {[%emt 0:00:00]} Ke6 {[%emt 0:00:56]} 37. Re2+ {[%emt 0:00:00]} Kf7 {[%emt 0:00:05]} 38. Rd2 {[%emt 0:00:00]} Ke6 {[%emt 0:00:05]} 39. Re2+ {[%emt 0:00:00]} Kf7 {[%emt 0:00:05]} 40. Ne4 {[%emt 0:00:00]} Nxe4+ {[%emt 0:01:39]} 41. Rxe4 {[%emt 0:00:00]} Rb1 {[%emt 0:01:07]} 42. Re3 {[%emt 0:00:00]} Rc1 {[%emt 0:00:42]} 43. Re4 {[%emt 0:00:00]} Rb1 {[%emt 0:00:27]} 44. Re3 {[%emt 0:00:00]} Rc1 {[%emt 0:00:06]} 45. Re4 {[%emt 0:00:00]} 1/2-1/2

[Event "8th Palmanova Open 2019"]
[Site "Palmanova"]
[Date "2019.12.08"]
[Round "4.4"]
[White "Trussevich, Sergey"]
[Black "Ghersinich, Enrico"]
[Result "0-1"]
[ECO "A06"]
[WhiteElo "2280"]
[BlackElo "2157"]
[Annotator "NA"]
[PlyCount "76"]
[EventDate "2019.12.06"]
[EventType "swiss"]
[EventCountry "ITA"]
[SourceTitle "playchess.com"]
[Source "ChessBase"]
[SourceQuality "1"]
[TimeControl "5400+30"]

1. Nf3 {[%emt 0:00:00]} d5 {[%emt 0:00:00]} 2. e3 {[%emt 0:00:00]} Nf6 {[%emt 0:00:19]} 3. b3 {[%emt 0:00:00]} g6 {[%emt 0:02:11]} 4. Bb2 {[%emt 0:00:00]} Bg7 {[%emt 0:00:07]} 5. Be2 {[%emt 0:00:11]} O-O {[%emt 0:00:19]} 6. O-O {[%emt 0:00:03]} b6 {[%emt 0:03:46]} 7. c4 {[%emt 0:00:45]} Bb7 {[%emt 0:00:39]} 8. cxd5 {[%emt 0:01:00]} Bxd5 {[%emt 0:03:49]} 9. Qc2 {[%emt 0:00:48]} c5 {[%emt 0:00:52]} 10. d3 {[%emt 0:00:29]} Nbd7 {[%emt 0:03:08]} 11. Nbd2 {[%emt 0:02:01]} Qc7 {[%emt 0:03:21]} 12. h3 {[%emt 0:00:36]} Rfe8 $14 {[%emt 0:03:50]} 13. Rac1 {[%emt 0:04:10]} Qb7 {[%emt 0:04:44]} 14. Qb1 {[%emt 0:15:37]} Rad8 {[%emt 0:09:47]} 15. a3 {[%emt 0:02:53]} Bh6 {[%emt 0:00:40]} 16. b4 {[%emt 0:08:57]} Qa8 {[%emt 0:06:02]} 17. Qa1 {[%emt 0:05:48]} Bb7 {[%emt 0:04:04]} 18. e4 {[%emt 0:08:35]} Nh5 {[%emt 0:01:10]} 19. g3 {[%emt 0:02:40]} Qb8 {[%emt 0:04:14]} 20. Kh2 {[%emt 0:04:00]} Be3 {[%emt 0:00:38]} 21. Kg2 {[%emt 0:17:16]} Bxf2 {[%emt 0:14:41]} 22. Rxf2 {[%emt 0:01:09]} Qxg3+ {[%emt 0:00:07]} 23. Kf1 {[%emt 0:00:19]} Nf4 {[%emt 0:00:36]} 24. Ng1 {[%emt 0:06:48]} Ba6 {[%emt 0:00:46]} 25. Nc4 {[%emt 0:05:59]} Nxe2 {[%emt 0:02:59]} 26. Kxe2 {[%emt 0:05:56]} Ne5 {[%emt 0:08:42]} 27. Nxe5 {[%emt 0:00:18]} Rxd3 {[%emt 0:00:06]} 28. Nc4 {[%emt 0:06:40]} Rd2+ {[%emt 0:05:55]} 29. Kxd2 {[%emt 0:00:03]} Qxf2+ {[%emt 0:00:06]} 30. Kc3 {[%emt 0:01:20]} Qg3+ {[%emt 0:00:06]} 31. Kc2 {[%emt 0:00:34]} Bxc4 {[%emt 0:00:07]} 32. Bc3 {[%emt 0:00:30]} Qg2+ {[%emt 0:00:38]} 33. Bd2 {[%emt 0:00:29]} Qxe4+ {[%emt 0:00:37]} 34. Kc3 {[%emt 0:00:33]} Qd3+ {[%emt 0:00:19]} 35. Kb2 {[%emt 0:00:01]} Qe4 {[%emt 0:18:05]} 36. Bc3 {[%emt 0:01:32]} Rd8 37. Qb1 {[%emt 0:00:30]} Be6 38. Ka1 {[%emt 0:00:30]} Qc4 0-1